Cogmind - Beta 16.1 @@@ ROGUE MODE // 2026.06.20 @ 02:57:11 Player: KURIIRI Result: Destroyed by X-87 Electro with Compact HERF Cannon Performance ------------- Evolutions (8) 4000 Regions Visited (28) 5600 Robots Destroyed (351) 1755 Value Destroyed (13602) 13602 Prototype IDs (104) 2080 Alien Tech Used (1) 200 Bonus (5864) 5864 TOTAL SCORE: 33101 Bonus ------- High Alert Combat Kills 664 Follower Combat Kills 2016 Network Hubs Disabled 400 Registered with UFD 300 Met Optimus in HQ 500 Met Zhirov 300 Built Enhanced Grunts 300 A7 Reached Mainframe 300 Met R17 at Cetus 500 Hacked Protovariant 500 Met R17 at Research 2000 Friendly Fire -1916 Cogmind --------- Core Integrity 0/1450 Matter 52/300 Energy 100/100 System Corruption 23% Temperature Warm (157) Movement Flying (45) Location -2/Quarantine Parts ------- > --- POWER (2) -------- (None) > --- PROPULSION (7) --- Impulse Thruster Impulse Thruster Array > --- UTILITY (11) ----- Experimental Optical Array Experimental Core Analyzer A0-MCA's Component Scanner Advanced Corruption Screen Advanced Corruption Screen > --- WEAPON (3) ------- (None) > --- INVENTORY (5) ---- Experimental Matter Compressor (229) Hacking Drone Bay (1/1) Smartbomb Launcher Peak State ------------ > --- POWER ------------ Micro Fission Core Quantum Reactor > --- PROPULSION ------- Antigrav Array Antigrav Array Combat Linear Gravjet Combat Linear Gravjet Combat Linear Gravjet > --- UTILITY ---------- Advanced Heat Sink Medium Storage Unit Experimental Optical Array Advanced Signal Interpreter Advanced Targeting Computer Experimental Core Analyzer Advanced Transmission Jammer Improved Cloaking Device Centrium Medium Armor Plating Advanced Remote Force Field A0-MCA's Component Scanner > --- WEAPON ----------- Enhanced Hardcell Cannon Enhanced Hardcell Cannon Power Maul > --- INVENTORY -------- Experimental Matter Compressor Launcher Loader Centrium Medium Armor Plating Advanced System Shield Hacking Drone Bay Smartbomb Launcher [Rating: 173] Favorites ----------- Power Light Ion Engine Engine Light Ion Engine Power Core Light Fission Core Reactor Quantum Reactor Propulsion Combat Linear Gravjet Treads Light Treads Leg Aluminum Leg Wheel Armored Wheel Hover Unit Combat Linear Gravjet Flight Unit Flight Unit Utility Advanced Signal Interpreter Device Improved Sensor Array Storage Medium Storage Unit Processor Advanced Signal Interpreter Hackware System Shield Protection Layered Medium Armor Plating Weapon Power Maul Energy Gun Medium Laser Energy Cannon Subdweller Beam Cannon Ballistic Gun Subdweller Machine Gun Ballistic Cannon Hypervelocity Gauss Cannon Launcher Tiamat Missile Launcher Special Weapon Multitool Impact Weapon Power Maul Slashing Weapon Great Axe Special Melee Weapon Datajack Build | -11 -10 -10 -8 -6 -6 -6 -6 -6 -6 -5 -5 -5 -5 -5 -5 -5 -4 -4 -4 -4 -4 -4 -4 -4 -3 -3 -2 -2 ------- Run | Yrd Mat Sub Scr Fac Was Fac Low Low Zio Pro Fac Was Fac Upp Upp Zhi Pro Fac Was Fac Ext Cet Arc Hub Res Tes Res Qua Slots Evolved 16 | . . . . 8 . . . . . . 2 . . . . . . 2 . . . . . . 2 . 2 . Power 1 | . . . . . . . . . . . . . . . . . . 1 . . . . . . . . . . Propulsion 5 | . . . . 3 . . . . . . 1 . . . . . . . . . . . . . 1 . . . Utility 9 | . . . . 5 . . . . . . 1 . . . . . . . . . . . . . 1 . 2 . Weapon 1 | . . . . . . . . . . . . . . . . . . 1 . . . . . . . . . . Parts Attached 180 | 4 9 14 4 19 1 16 5 . 3 2 15 . 18 3 2 2 4 1 1 6 6 6 9 2 14 4 5 5 Power 17 | . 1 . 1 1 . 1 1 . . 1 . . 2 1 1 . . 1 1 . 2 . 1 . 2 . . . Engine 6 | . 1 . 1 . . . . . . . . . 2 1 1 . . . . . . . . . . . . . Core 7 | . . . . 1 . 1 1 . . 1 . . . . . . . . . . 2 . . . 1 . . . Reactor 4 | . . . . . . . . . . . . . . . . . . 1 1 . . . 1 . 1 . . . Propulsion 52 | 2 2 3 1 5 . 8 1 . . . 6 . 3 . . 2 2 . . 3 2 3 1 1 4 . 1 2 Treads 5 | 2 . 3 . . . . . . . . . . . . . . . . . . . . . . . . . . Leg . | . . . . . . . . . . . . . . . . . . . . . . . . . . . . . Wheel 2 | . 2 . . . . . . . . . . . . . . . . . . . . . . . . . . . Hover 34 | . . . . 1 . 6 1 . . . 6 . 3 . . . 2 . . 3 2 3 1 1 4 . 1 . Flight 11 | . . . 1 4 . 2 . . . . . . . . . 2 . . . . . . . . . . . 2 Utility 76 | 2 4 4 2 9 . 4 2 . 3 1 6 . 9 1 1 . 2 . . 2 1 2 6 1 8 2 2 2 Device 32 | 2 1 . 1 1 . 1 . . 2 . 3 . 6 1 . . 1 . . 1 . . 4 . 5 2 1 . Storage 7 | . 3 . . 1 . 1 . . . . . . . . 1 . . . . 1 . . . . . . . . Processor 16 | . . . 1 4 . 1 2 . . 1 2 . 1 . . . . . . . . . . . 2 . . 2 Hackware 9 | . . . . 2 . 1 . . . . 1 . 1 . . . . . . . . . 2 1 . . 1 . Protection 12 | . . 4 . 1 . . . . 1 . . . 1 . . . 1 . . . 1 2 . . 1 . . . Artifact . | . . . . . . . . . . . . . . . . . . . . . . . . . . . . . Weapon 35 | . 2 7 . 4 1 3 1 . . . 3 . 4 1 . . . . . 1 1 1 1 . . 2 2 1 Energy Gun 5 | . . 1 . . . . . . . . 2 . . . . . . . . . . 1 1 . . . . . Energy Cannon 5 | . 1 3 . . . . 1 . . . . . . . . . . . . . . . . . . . . . Ballistic Gun 6 | . 1 3 . . . . . . . . . . . . . . . . . . . . . . . 1 . 1 Ballistic Cannon 10 | . . . . . 1 2 . . . . . . 3 1 . . . . . 1 . . . . . . 2 . Launcher 3 | . . . . . . 1 . . . . . . 1 . . . . . . . . . . . . 1 . . Special Weapon 1 | . . . . 1 . . . . . . . . . . . . . . . . . . . . . . . . Impact Weapon 1 | . . . . 1 . . . . . . . . . . . . . . . . . . . . . . . . Slashing Weapon 2 | . . . . 1 . . . . . . 1 . . . . . . . . . . . . . . . . . Piercing Weapon . | . . . . . . . . . . . . . . . . . . . . . . . . . . . . . Special Melee Weapon 2 | . . . . 1 . . . . . . . . . . . . . . . . 1 . . . . . . . Unidentified Prototypes 1 | . . . . . . . . . . . . . . . . 1 . . . . . . . . . . . . Corrupted Parts 1 | . . . . . . . . . . . . . . . . . . . . . . . 1 . . . . . System Corruption 6 | . . . . . . . . . . . . . . . . . . . . . . . 6 . . . . . Parts Lost 53 | . 1 2 . 3 1 5 2 2 . . . . 3 1 1 . 1 . . 1 6 1 1 . 1 2 19 . Power 7 | . 1 . . . . . . . . . . . 1 1 . . . . . 1 1 . . . . . 2 . Propulsion 23 | . . 1 . 1 1 4 1 1 . . . . 2 . 1 . . . . . 4 . 1 . . . 6 . Utility 16 | . . . . 1 . 1 1 1 . . . . . . . . 1 . . . 1 1 . . 1 1 7 . Weapon 7 | . . 1 . 1 . . . . . . . . . . . . . . . . . . . . . 1 4 . Highest Loss Streak 9 | . 1 1 . 1 1 3 1 1 . . . . 1 1 1 . 1 . . 1 3 1 1 . 1 1 9 . To Critical Strikes 1 | . . . . . . . . . . . . . . . . . . . . . . . . . . 1 . . Average Backups 9 | 5 15 7 15 5 8 6 7 7 7 7 9 10 9 9 9 10 9 9 9 9 9 8 8 9 8 7 5 3 Power . | 1 . . . . . . 2 2 2 1 1 1 . . . . . . . . . . . . . . . . Propulsion 1 | 3 7 2 3 . . 1 . . . . . 1 . . . . . 1 1 1 1 . . . . . . . Utility 3 | . 4 2 6 1 3 . . . . 1 2 2 4 4 4 5 5 5 5 5 4 4 5 6 6 6 4 2 Weapon 2 | 1 2 1 2 2 4 2 3 3 3 3 3 3 3 3 3 2 1 1 1 1 3 2 2 2 1 . 1 1 Tool/Special . | . . . . . . . . . . . . . . . . . . . . . . . . . . . . . Unused Backups 43 | . 11 5 7 5 . 3 1 . . . 1 . 1 . . . 1 . 2 2 . 1 . . 1 . 1 1 Power 1 | . . . 1 . . . . . . . . . . . . . . . . . . . . . . . . . Propulsion 6 | . 5 1 . . . . . . . . . . . . . . . . . . . . . . . . . . Utility 22 | . 4 2 3 3 . 2 1 . . . 1 . . . . . 1 . . 2 . . . . 1 . 1 1 Weapon 11 | . 2 2 3 2 . 1 . . . . . . . . . . . . . . . 1 . . . . . . Tool/Special 3 | . . . . . . . . . . . . . 1 . . . . . 2 . . . . . . . . . Average Slot Usage (%) 84 | . 99 85 74 90 86 93 90 81 74 77 90 94 88 80 79 79 87 85 89 89 85 82 87 94 86 84 72 22 Engine 5 | . 13 14 12 1 . . . . . . . . 1 4 5 5 5 5 5 5 4 . . . . . . . Core 2 | . . . . 4 6 6 6 6 6 6 5 5 3 . . . . . . . 3 5 5 5 2 4 3 . Treads 8 | . 21 26 26 . . . . . . . . . . . . . . . . . . . . . . . . . Hover 15 | . . . . . . 21 22 21 20 20 27 29 23 23 20 17 23 26 26 28 24 29 28 31 25 23 16 . Flight 1 | . . . . 29 26 6 3 . . . . . . . . 3 5 . . . . . . . . . . 2 Device 5 | . 14 . . 6 6 11 6 5 3 . 8 11 5 4 5 5 8 10 10 10 9 5 8 5 10 8 13 . Storage 6 | . 14 3 13 2 6 4 6 6 6 6 5 5 5 5 5 5 5 5 5 5 5 5 5 5 4 4 3 . Processor 16 | . . . 3 18 20 20 25 26 23 24 24 29 28 29 29 29 25 21 21 21 21 15 15 15 19 23 19 19 Hackware 1 | . . . . 12 13 7 4 . . . 2 . 3 . . . . . . . . . . 14 1 . . . Protection 3 | . . 10 . 2 . . . . . 6 1 . 1 4 5 5 5 5 5 4 4 11 9 . 3 4 3 . Energy Cannon 2 | . 9 8 6 . . . 1 . . . . . . . . . . . . . . . . . . . . . Ballistic Gun 4 | . 3 19 10 . . . . . . . . . . . . . . . . . . . . . . . 1 . Ballistic Cannon 3 | . . . . . 1 4 4 6 6 6 4 5 5 5 5 5 4 5 5 5 5 3 1 5 4 2 4 . Impact Weapon 2 | . . . . 2 4 5 6 6 6 6 4 5 4 . . . . 5 5 4 4 5 5 5 4 4 1 . Peak Build Rating 173 | 9 14 13 18 56 53 74 76 72 82 67 91 88 96 90 90 98 99 110 112 123 120 120 124 124 154 160 173 69 Average Rating 68 | 7 9 10 11 46 50 68 73 68 67 65 83 88 84 87 86 88 98 107 111 115 108 107 110 121 147 154 137 51 On Entrance 77 | 6 7 13 11 18 51 49 74 72 64 61 67 88 88 87 90 84 98 99 110 112 114 95 120 124 121 154 149 30 Avg Prop Armor Cover (%) 3 | . 11 7 . 4 . 6 2 . 7 . 2 4 5 2 . 2 1 . . 2 2 1 1 . . 4 2 11 Naked Turns . | . . . . . . . . . . . . . . . . . . . . . . . . . . . . . Heaviest Build 92 | 13 90 55 55 21 21 32 32 31 40 35 37 35 42 43 43 43 44 65 65 62 61 64 70 70 86 79 92 . Greatest Support 101 | 40 40 40 40 26 21 48 50 50 41 41 68 58 69 61 61 49 73 75 75 77 66 78 75 75 101 101 101 23 Greatest Overweight (x) 11 | . 7 4 9 1 1 2 . . 11 . 1 2 1 1 . 7 . . . . 1 1 1 . . . 1 . Average Overweight (x) . | . 2 . . . . . . . . . . . . . . . . . . . . . . . . . . . Largest Inventory Capacity 25 | 8 25 20 20 20 10 10 10 10 10 10 10 10 10 10 10 10 10 10 10 20 10 10 10 10 10 10 10 5 Average Capacity 11 | 8 19 8 19 7 10 8 10 10 10 10 10 10 10 10 10 10 10 10 10 10 10 10 10 10 10 10 8 5 Most Carried 25 | 7 25 20 19 18 8 9 10 9 10 10 10 10 10 10 10 10 10 10 10 10 10 10 10 10 10 10 9 4 Average Carried 10 | 5 15 7 17 5 8 6 9 9 8 8 9 10 9 9 9 10 9 9 9 9 10 9 9 9 9 9 7 4 Final Capacity 20 | 8 20 20 20 10 10 10 10 10 10 10 10 10 10 10 10 10 10 10 10 10 10 10 10 10 10 10 5 5 Final Carried 20 | 5 20 19 19 8 8 7 9 9 7 10 10 10 10 10 10 10 10 10 9 10 10 10 10 10 10 9 4 4 Class Distribution -------------------- 35% | Mutant 22% | Scout 13% | Scientist-Scout 7% | Subdweller-Mutant 5% | Scavenger-Mutant Dominant Class ---------------- Mutant | -10/Materials Subdweller-Mutant | -10/Subcaves Mutant | -8/Scraptown Scavenger-Sprinter | -6/Factory Scavenger-Sprinter | -6/Waste Scout | -6/Factory Scout | -6/Lower Caves Mutant | -6/Lower Caves Mutant | -6/Zion Mutant | -5/Proximity Caves Scout | -5/Factory Scout | -5/Waste Scientist-Scout | -5/Factory Scout | -5/Upper Caves Scout | -5/Upper Caves Scout | -5/Zhirov Scout | -4/Proximity Caves Scout | -4/Factory Scientist-Scout | -4/Waste Scout | -4/Factory Scientist-Ninja | -4/Extension Commander-Mutant | -4/Cetus Scavenger-Mutant | -4/Archives Scavenger-Mutant | -4/Hub_04(d) Scientist-Scout | -3/Research Scientist-Ninja | -3/Testing Scientist-Mutant | -2/Research Mutant | -2/Quarantine Resources | -11 -10 -10 -8 -6 -6 -6 -6 -6 -6 -5 -5 -5 -5 -5 -5 -5 -4 -4 -4 -4 -4 -4 -4 -4 -3 -3 -2 -2 ----------- Run | Yrd Mat Sub Scr Fac Was Fac Low Low Zio Pro Fac Was Fac Upp Upp Zhi Pro Fac Was Fac Ext Cet Arc Hub Res Tes Res Qua Matter Collected 14850 | 210 551 452 60 240 . 839 282 179 2039 172 488 175 2378 421 336 . 411 . 592 895 867 309 512 52 1448 402 540 . Remotely . | . . . . . . . . . . . . . . . . . . . . . . . . . . . . . Salvage Created 14907 | 151 1162 591 . 477 . 842 210 155 . 149 575 300 3328 493 138 . 132 . 1139 1223 888 157 245 172 1471 684 225 . Parts 542 | 18 79 49 . 22 . 7 7 9 . 7 19 2 128 11 9 . 13 . . 34 28 5 23 3 37 23 9 . Haulers Intercepted 14 | . 2 . . 2 . 1 . . . . . . 5 . . . . . . 2 . . . . 1 1 . . Recyclers Shooed 10 | . 1 . . 1 . . . . . . 1 . 1 . . . . . . 1 2 . . . 1 1 1 . Parts Field Recycled . | . . . . . . . . . . . . . . . . . . . . . . . . . . . . . Retrieved Matter . | . . . . . . . . . . . . . . . . . . . . . . . . . . . . . Parts Self-Destructed 66 | . . 18 . . . . 6 6 . 10 . . . 10 8 . 8 . . . . . . . . . . . Prevented 4 | . . . . . . . . 3 . . . . . . 1 . . . . . . . . . . . . . Parts Restored 1 | . . . . . . . . . . . . . 1 . . . . . . . . . . . . . . . Broken 1 | . . . . . . . . . . . . . 1 . . . . . . . . . . . . . . . Kills | -11 -10 -10 -8 -6 -6 -6 -6 -6 -6 -5 -5 -5 -5 -5 -5 -5 -4 -4 -4 -4 -4 -4 -4 -4 -3 -3 -2 -2 ------- Run | Yrd Mat Sub Scr Fac Was Fac Low Low Zio Pro Fac Was Fac Upp Upp Zhi Pro Fac Was Fac Ext Cet Arc Hub Res Tes Res Qua Combat Hostiles Destroyed 218 | . 20 18 . 2 . 9 5 6 . 2 4 1 46 12 8 . 7 . 6 18 14 4 . 2 21 8 5 . Melee 6 | . . . . 2 . 1 1 1 . . . . 1 . . . . . . . . . . . . . . . Guns 18 | . 6 12 . . . . . . . . . . . . . . . . . . . . . . . . . . Cannons 153 | . 13 6 . . . 4 4 3 . 2 4 1 25 12 4 . 4 . 6 17 14 4 . 2 21 4 3 . AOE 35 | . . . . . . 3 . . . . . . 19 . 4 . 3 . . 1 . . . . . 4 1 . Classes Destroyed 27 | 2 8 2 . 1 . 3 1 . . 1 1 1 . 1 . . . . . . 1 . . 1 4 . . . Worker 17 | . 1 . . . . 3 . . . . 1 . 7 . . . . . . 2 . . . . . 1 2 . Builder 21 | . 1 . . . . 1 . . . . 1 . 10 . . . . . . 3 . . . 1 . 4 . . Tunneler 7 | 5 . . . . . . . . . . . . 2 . . . . . . . . . . . . . . . Hauler 14 | . 2 . . 2 . 1 . . . . . . 5 . . . . . . 2 . . . . 1 1 . . Recycler 25 | 1 3 . . 1 . 2 . . . . 2 . 5 . . . . . . 2 3 . . . 4 2 . . Minesweeper 2 | . . . . . . . . . . 1 . . . . 1 . . . . . . . . . . . . . Mechanic 5 | . . . . . . 2 . . . . 1 . 2 . . . . . . . . . . . . . . . Operator 15 | . 3 . . 1 . . . . . . 1 . 3 . . . . . . 1 1 . 4 . 1 . . . Turret 1 | . . 1 . . . . . . . . . . . . . . . . . . . . . . . . . . Watcher 24 | . 3 . . 1 . 2 . . . . 1 . 6 . . . . . . . 2 1 . 2 1 2 3 . Swarmer 57 | . 6 3 . . . 4 1 5 . . . . 14 2 6 . 4 . . 3 4 . . . 5 . . . Grunt 66 | . 13 4 . 1 . 2 . . . 1 1 . 18 2 1 . . . . 10 3 . . 1 5 4 . . Brawler 8 | . . . . . . . 2 . . . . . 1 4 . . . . . 1 . . . . . . . . Duelist 3 | . . . . . . 1 . . . . . . . 1 . . . . . . . . . . 1 . . . Sentry 15 | . . . . . . 1 . 1 . 1 1 . 3 2 1 . 1 . . 2 2 . . . . . . . Demolisher 1 | . . . . . . . . . . . . . . . . . . . . . . . . . 1 . . . Hunter 15 | . . . . . . . . . . . 1 . 3 1 . . . . . . . . . . 5 4 1 . Programmer 24 | . . . . 1 . 1 2 . . . 1 . 7 . . . 2 . . 2 4 . . . . . 4 . Heavy 1 | . . . . . . . . . . . . . . . . . . . . . . . . 1 . . . . Behemoth 1 | . . . . . . . . . . . . . . . . . . . . . 1 . . . . . . . Compactor 7 | . . . . . . . . . . . . 1 . . . . . . 6 . . . . . . . . . Cetus Guard 4 | . . . . . . . . . . . . . . . . . . . . . . 4 . . . . . . Striker 3 | . . . . . . . . . . . . . . . . . . . . . . . . . 3 . . . Executioner 1 | . . . . . . . . . . . . . . . . . . . . . . . . . 1 . . . Artisan 2 | . . 2 . . . . . . . . . . . . . . . . . . . . . . . . . . Subdweller 12 | . 1 11 . . . . . . . . . . . . . . . . . . . . . . . . . . Decomposer 3 | . . . . . . . . . . . . . . 3 . . . . . . . . . . . . . . Samaritan 1 | . . . . . . . . . . . . . . 1 . . . . . . . . . . . . . . Thug 1 | . . . . . . . . . . . . . . . . . . . . . . . 1 . . . . . Revision 1 | . . . . . . . . . . . . . . . . . . . . . . . . . 1 . . . Best Kill Streak 13 | 4 4 2 . 3 . 5 2 3 . 1 3 1 9 3 6 . 4 . 3 4 5 3 2 3 6 13 3 . Combat Bots Only 9 | . 3 2 . 1 . 3 2 3 . 1 1 1 9 3 5 . 4 . 3 4 5 3 . 1 5 5 2 . Max Kills in Single Turn 5 | 1 1 2 . 1 . 3 1 1 . 1 1 1 5 1 3 . 3 . 1 2 2 1 1 1 1 3 1 . Gunslinging 1 | . . 1 . . . . . . . . . . . . . . . . . . . . . . . . . . Exploded 5 | . . . . . . 3 . . . . . . 5 . 3 . 3 . . 1 . . . . . 2 1 . Melee 1 | . . . . 1 . 1 1 1 . . . . 1 . . . . . . . . . . . . . . . Uniques/NPCs Destroyed . | . . . . . . . . . . . . . . . . . . . . . . . . . . . . . Combat | -11 -10 -10 -8 -6 -6 -6 -6 -6 -6 -5 -5 -5 -5 -5 -5 -5 -4 -4 -4 -4 -4 -4 -4 -4 -3 -3 -2 -2 -------- Run | Yrd Mat Sub Scr Fac Was Fac Low Low Zio Pro Fac Was Fac Upp Upp Zhi Pro Fac Was Fac Ext Cet Arc Hub Res Tes Res Qua Hostile Shots Fired 957 | . 70 88 . 35 1 72 20 28 . 3 8 . 91 24 19 . 9 . . 38 55 14 3 2 22 73 264 18 Missed 355 | . 21 22 . 20 . 32 11 14 . 3 4 . 29 10 10 . 2 . . 17 10 5 1 2 8 28 98 8 Hits 602 | . 49 66 . 15 1 40 9 14 . . 4 . 62 14 9 . 7 . . 21 45 9 2 . 14 45 166 10 Melee 1 | . . . . . 1 . . . . . . . . . . . . . . . . . . . . . . . Projectile 601 | . 49 66 . 15 . 40 9 14 . . 4 . 62 14 9 . 7 . . 21 45 9 2 . 14 45 166 10 AOE 2 | . . . . . . . . . . . . . 1 . . . . . . . . . . . 1 . . . Critical Strikes 21 | . . 1 . 1 1 . 1 . . . . . 2 . . . 1 . . 1 . 1 . . . 4 8 . Part Disruptions 5 | . . . . . . 2 . . . . . . 1 . . . . . . . . . . . . . 1 1 Damage Taken 11475 | . 562 979 . 190 55 520 113 177 . . 104 32 1395 287 145 . 129 . . 486 726 214 30 . 317 761 3933 320 Core 2502 | . 119 102 . 59 55 85 14 20 . . . 16 290 28 35 . 22 . . 39 105 . . . 24 13 1278 198 Absorbed by Shields 742 | . . . . . . . . . . . . . . . . . . . . . 297 53 . . 104 161 127 . Regen/Repaired (Parts) 1179 | . . . . . . . . . . . 161 . 307 . . . . . . 164 . . . . 547 . . . Core Remaining (%) 71 | 100 . . 11 . . . . . . 72 . . . . . . 60 . . . . . . 87 . 97 . . Volleys Fired 1062 | 8 94 90 . . . 65 29 4 . 19 33 22 148 47 14 . 25 . 45 60 75 21 90 8 87 29 49 . Largest 2 | 2 2 2 . . . 1 1 1 . 1 1 1 2 1 1 . 1 . 1 1 2 1 1 1 1 1 2 . Hottest 240 | 100 110 160 . . . 51 98 51 . 51 51 51 102 60 60 . 60 . 60 60 106 240 65 60 60 60 116 . Shots Fired 1274 | 16 154 145 . . . 68 29 5 . 19 33 22 192 47 14 . 25 . 45 61 77 22 88 8 87 29 88 . Gun 277 | 16 86 113 . . . . . . . . . . . . . . . . . . . 1 49 . . 2 10 . Cannon 943 | . 68 32 . . . 67 29 5 . 19 33 22 185 47 12 . 23 . 45 61 75 21 9 8 87 20 75 . Launcher 24 | . . . . . . 1 . . . . . . 7 . 2 . 2 . . . 2 . . . . 7 3 . Special 30 | . . . . . . . . . . . . . . . . . . . . . . . 30 . . . . . Kinetic 960 | . 6 108 . . . 67 20 5 . 19 33 22 185 47 12 . 23 . 45 61 75 21 9 8 87 22 85 . Thermal 290 | 16 148 37 . . . . 9 . . . . . . . . . . . . . . 1 79 . . . . . Explosive 24 | . . . . . . 1 . . . . . . 7 . 2 . 2 . . . 2 . . . . 7 3 . Electromagnetic . | . . . . . . . . . . . . . . . . . . . . . . . . . . . . . Robot Hit Streak 35 | 4 17 9 . . . 11 6 4 . 6 8 14 35 24 9 . 6 . 22 24 12 9 12 7 20 9 8 . Robot Miss Streak 7 | 2 3 3 . . . 4 6 . . 2 7 3 5 4 2 . 4 . 2 5 3 2 3 3 5 2 3 . Penetration Max 1 | . . . . . . 1 1 . . . . . 1 . . . . . . . . . . . . . . . Secondary Targets 1 | . . 1 . . . . . . . . . . . . . . . . . . . . . . . . . . Max Gunslinging Chain 1 | . . 1 . . . . . . . . . . . . . . . . . . . . . . . . . . Shots Hit Robots 979 | 8 110 81 . 11 . 46 15 9 . 13 30 16 170 42 11 . 11 . 45 53 68 20 61 9 77 24 49 . Core Hits 596 | 7 45 33 . 7 . 13 5 4 . 6 9 1 110 29 14 . 12 . 20 51 55 16 32 7 67 37 16 . Critical Kills 55 | . 1 . . . . 3 2 2 . 2 4 1 38 1 . . . . . 1 . . . . . . . . Critical Parts Destroyed 102 | . . 2 . 1 . 16 4 1 . 5 11 3 51 . . . . . . 3 . . . 1 2 1 1 . Critical Strikes 210 | . 10 2 . 1 . 20 7 4 . 9 18 10 93 2 . . 1 . 2 6 5 4 2 3 6 2 3 . Burn 11 | . 9 . . . . . . . . . . . . . . . . . . . . . 2 . . . . . Meltdown 1 | . 1 . . . . . . . . . . . . . . . . . . . . . . . . . . . Destroy 154 | . . 2 . . . 17 7 3 . 9 15 10 90 1 . . . . . . . . . . . . . . Blast 24 | . . . . . . . . . . . . . . 1 . . 1 . 2 2 5 4 . 2 4 1 2 . Smash 20 | . . . . 1 . 3 . 1 . . 3 . 3 . . . . . . 4 . . . 1 2 1 1 . Melee Attacks 276 | . . . . 46 . 43 4 7 2 1 18 1 82 . . . . . . 32 4 . . 4 16 7 9 . Impact 248 | . . . . 22 . 43 4 7 2 1 15 1 82 . . . . . . 32 3 . . 4 16 7 9 . Slashing 25 | . . . . 22 . . . . . . 3 . . . . . . . . . . . . . . . . . Piercing . | . . . . . . . . . . . . . . . . . . . . . . . . . . . . . Sneak Attacks 46 | . . . . 6 . 8 . . . 1 5 . 16 . . . . . . 6 2 . . . 1 1 . . Combat Hostiles 1 | . . . . 1 . . . . . . . . . . . . . . . . . . . . . . . . Follow-up Attacks . | . . . . . . . . . . . . . . . . . . . . . . . . . . . . . Damage Inflicted 43156 | 114 1691 1616 . 656 . 1773 452 295 . 344 1239 287 7025 2312 1024 . 907 . 3064 3858 4383 1400 1180 597 4096 2281 2562 . Guns 2651 | 114 836 1011 . . . . . . . . . . . . . . . . . . . . 481 . . 46 163 . Cannons 28409 | . 844 605 . . . 527 398 74 . 244 340 287 2457 2312 593 . 540 . 3064 2923 4171 1400 527 445 3943 968 1747 . Explosions 5007 | . . . . . . 154 . . . . . . 1972 . 431 . 367 . . 357 76 . . . . 1137 513 . Melee 6898 | . . . . 656 . 1092 54 221 . 100 899 . 2596 . . . . . . 578 136 . . 152 153 130 131 . Ramming 19 | . 11 . . . . . . . . . . . . . . . . . . . . . . . . . 8 . Kinetic 27994 | . 52 974 . . . 527 197 74 . 244 340 287 2457 2312 593 . 540 . 3064 2923 4171 1400 527 445 3943 1014 1910 . Thermal 3595 | 114 1628 642 . . . . 201 . . . . . . . . . . . . 357 . . 653 . . . . . Explosive 4458 | . . . . . . 154 . . . . . . 1780 . 431 . 367 . . . 76 . . . . 1137 513 . Electromagnetic 192 | . . . . . . . . . . . . . 192 . . . . . . . . . . . . . . . Impact 6248 | . . . . 119 . 1092 54 221 . 100 786 . 2596 . . . . . . 578 136 . . 152 153 130 131 . Slashing 650 | . . . . 537 . . . . . . 113 . . . . . . . . . . . . . . . . . Piercing . | . . . . . . . . . . . . . . . . . . . . . . . . . . . . . Highest Corruption 23 | . 1 1 . . 10 13 13 13 13 . 1 18 18 2 . . 1 . . 5 7 7 7 . . . 23 23 Average Corruption 4 | . 1 1 . . 10 10 13 13 13 . 1 10 3 1 . . 1 . . 5 5 7 3 . . . 13 23 Corruption Purged 33 | . . . . . . . . . . . . . 18 2 . . . . . . . . 13 . . . . . Corruption Blocked 4 | . . . . . . . 2 . . . . . . . . . . . . . . . . . . . . 2 Effects 242 | . 6 24 . . 1 36 27 9 1 . 1 7 47 1 . . 4 . . 8 29 11 12 . . . 10 8 Message Errors 54 | . 1 4 . . . 7 4 3 . . 1 2 12 . . . 2 . . 1 7 3 3 . . . 2 2 Matter Fused 44 | . 2 6 . . . 4 9 . . . . 1 10 . . . 2 . . 1 6 2 . . . . . 1 Heat Flow Errors 26 | . 2 1 . . . 4 2 1 . . . 1 3 . . . . . . 2 5 . 2 . . . 1 2 Energy Discharges 27 | . . 2 . . . 7 2 1 1 . . 1 4 1 . . . . . 1 3 . 4 . . . . . Parts Rejected 5 | . . . . . 1 . 2 . . . . . 2 . . . . . . . . . . . . . . . Parts Fused 5 | . . 1 . . . . 2 1 . . . . 1 . . . . . . . . . . . . . . . Data Loss (minor) 28 | . . 6 . . . 3 1 . . . . 1 7 . . . . . . 1 6 1 . . . . 1 1 Data Loss (major) 12 | . 1 . . . . 3 . 1 . . . 1 2 . . . . . . . 1 1 1 . . . . 1 Misfires 17 | . . 4 . . . 4 2 1 . . . . 4 . . . . . . 1 . 1 . . . . . . Alerts 6 | . . . . . . . . 1 . . . . . . . . . . . 1 1 3 . . . . . . Misdirections 11 | . . . . . . 3 1 . . . . . . . . . . . . . . . . . . . 6 1 Weapon Failures 7 | . . . . . . 1 2 . . . . . 2 . . . . . . . . . 2 . . . . . Overload Shots 1 | . . . . . . . . . . . . . . . . . . . . . . 1 . . . . . . Overflow Damage 4104 | . . 20 . 172 . 655 63 80 . . 398 . 1328 82 11 . 15 . . 491 100 . . 89 202 197 201 . Projectiles 515 | . . 20 . . . 11 31 . . . . . . 82 11 . . . . 43 100 . . 7 49 21 140 . Explosions 307 | . . . . . . 13 . . . . . . 169 . . . 15 . . 34 . . . . . 76 . . Melee 3282 | . . . . 172 . 631 32 80 . . 398 . 1159 . . . . . . 414 . . . 82 153 100 61 . Knockbacks 129 | . . . . 1 . 10 . 1 . . 3 . 16 5 4 . . . . 14 14 6 5 3 18 8 21 . Impact 26 | . . . . 1 . 5 . 1 . . 3 . 7 . . . . . . 2 2 . . 2 . 1 2 . Kinetic 97 | . . . . . . 3 . . . . . . 9 5 4 . . . . 11 11 5 4 1 18 7 19 . Secondary 6 | . . . . . . 2 . . . . . . . . . . . . . 1 1 1 1 . . . . . Self-Inflicted Damage 70 | . 4 . . . . 10 . . . . . . . . . . . . . . . . . . . 53 3 . Shots 2 | . . . . . . 1 . . . . . . . . . . . . . . . . . . . 1 . . Rammed 7 | . 3 . . . . . . . . . . . . . . . . . . . . . . . . . 4 . Targets Rammed 7 | . 3 . . . . . . . . . . . . . . . . . . . . . . . . . 4 . Kicked . | . . . . . . . . . . . . . . . . . . . . . . . . . . . . . Crushed . | . . . . . . . . . . . . . . . . . . . . . . . . . . . . . Highest Temperature 357 | 156 307 190 . 16 . 258 276 177 . 2 65 286 216 165 113 . 156 18 242 338 293 357 289 81 336 192 127 100 Average Temperature 73 | 77 82 79 . 9 . 69 84 68 . 1 24 104 52 51 39 . 73 12 77 84 51 119 104 29 75 76 32 55 Received Heat Transfer 1443 | . 240 282 . 102 . 39 48 24 . . . . 264 45 27 . . . . 109 105 . . . 14 9 126 9 Effects 13 | . 2 . . . . . . . . . . 4 . . . . . . . 1 1 1 4 . . . . . Energy Bleed 4 | . . . . . . . . . . . . 1 . . . . . . . 1 1 . 1 . . . . . Interference 8 | . 2 . . . . . . . . . . 3 . . . . . . . . . . 3 . . . . . Matter Decay 1 | . . . . . . . . . . . . . . . . . . . . . . 1 . . . . . . Siege Activations . | . . . . . . . . . . . . . . . . . . . . . . . . . . . . . Martial Activations . | . . . . . . . . . . . . . . . . . . . . . . . . . . . . . Shielding Activations . | . . . . . . . . . . . . . . . . . . . . . . . . . . . . . Robots Disrupted . | . . . . . . . . . . . . . . . . . . . . . . . . . . . . . Combat Hostiles . | . . . . . . . . . . . . . . . . . . . . . . . . . . . . . Robots Corrupted 36 | . . . . 1 . 9 . 2 . . 3 . 12 . . . . . . 3 . . . 2 1 1 2 . Combat Hostiles 4 | . . . . . . 1 . 2 . . . . 1 . . . . . . . . . . . . . . . Parts Fried 67 | . . . . . . 19 . . . . 5 . 25 . . . . . . 9 . . . 2 2 3 2 . Impact Corruptions 106 | . . . . 5 . 26 2 3 . . 11 . 38 . . . . . . 10 . . . 3 4 2 2 . Robots Melted 2 | . 2 . . . . . . . . . . . . . . . . . . . . . . . . . . . Combat Hostiles 1 | . 1 . . . . . . . . . . . . . . . . . . . . . . . . . . . Parts Melted 9 | 1 3 2 . . . . 1 . . . . . . . . . . . . . . . 1 . 1 . . . Heat Transferred 8525 | 333 4736 999 . . . . 250 . . . . . . . . . . . . 300 . . 1907 . . . . . Parts Sabotaged . | . . . . . . . . . . . . . . . . . . . . . . . . . . . . . Parts Stolen . | . . . . . . . . . . . . . . . . . . . . . . . . . . . . . Parts Stripped . | . . . . . . . . . . . . . . . . . . . . . . . . . . . . . Power Chain Reactions . | . . . . . . . . . . . . . . . . . . . . . . . . . . . . . Alert | -11 -10 -10 -8 -6 -6 -6 -6 -6 -6 -5 -5 -5 -5 -5 -5 -5 -4 -4 -4 -4 -4 -4 -4 -4 -3 -3 -2 -2 ------- Run | Yrd Mat Sub Scr Fac Was Fac Low Low Zio Pro Fac Was Fac Upp Upp Zhi Pro Fac Was Fac Ext Cet Arc Hub Res Tes Res Qua Maximum Alert Level 3 | . 1 . . 1 . . . . . . 1 . 3 . . . . . . 2 3 2 1 1 2 2 1 . Low Security (%) 48 | 100 72 . . 91 100 100 . . . . 60 100 17 . . . . 100 100 43 2 . 39 30 69 . 30 100 Level 1 35 | . 27 . . 8 . . . . . . 39 . 49 . . . . . . 19 82 . 60 69 15 59 69 . Level 2 13 | . . . . . . . . . . . . . 19 . . . . . . 36 9 100 . . 15 40 . . Level 3 2 | . . . . . . . . . . . . . 13 . . . . . . . 5 . . . . . . . Level 4 . | . . . . . . . . . . . . . . . . . . . . . . . . . . . . . Level 5 . | . . . . . . . . . . . . . . . . . . . . . . . . . . . . . High Security . | . . . . . . . . . . . . . . . . . . . . . . . . . . . . . Max Security . | . . . . . . . . . . . . . . . . . . . . . . . . . . . . . Peak Influence 863 | 15 298 . . 245 80 105 . . . . 249 63 863 . . . . 5 6 493 786 677 378 362 497 522 311 174 Initial 436 | . 3 . . . 80 42 . . . . 35 63 25 . . . . . . . 207 436 235 23 162 255 280 174 Average 235 | 4 135 . . 65 74 57 . . . . 180 34 389 . . . . 1 . 235 317 582 216 236 200 344 213 137 Influence Increases 11150 | 30 689 325 . 514 . 521 210 130 . 160 581 60 1852 295 175 . 185 5 18 974 1177 401 255 568 910 464 651 . Destroy 0b10 Robot/C 4760 | . 380 160 . 40 . 180 100 120 . 100 320 . 920 240 160 . 140 . . 360 460 160 80 160 420 160 100 . Destroy 0b10 Robot/NC 680 | 30 65 . . 25 . 55 . . . 5 50 . 200 . 5 . . . . 50 35 10 20 20 35 50 25 . Destroy Leader 868 | . 100 30 . 16 . 36 20 10 . 20 86 . 180 10 10 . 30 . . 64 54 . . 46 94 26 36 . Allied During Kill 909 | . . . . . . . . . . 35 43 . . . . . . . . . 350 170 100 211 . . . . Trap Triggered on 0b10 20 | . . . . . . . . . . . 20 . . . . . . . . . . . . . . . . . Successful Hack 291 | . 6 . . 71 . 2 . . . . 22 . 38 . . . . 5 . 29 32 . . . 55 18 13 . Select Force Hacks 170 | . 60 . . 30 . . . . . . . . . . . . . . . . . . . 50 30 . . . Disable Machine 525 | . 45 . . . . 15 . . . . 15 . 75 . . . . . . 90 45 15 45 45 45 45 45 . Destroy Structure 1052 | . 3 . . 32 . 38 . . . . 10 60 184 . . . . . 18 126 156 46 10 36 66 120 147 . Partial Spotted 255 | . 15 . . 60 . 75 . . . . . . 30 . . . . . . . 30 . . . . 45 . . Lose Combat Pursuer 1620 | . 15 135 . 240 . 120 90 . . . 15 . 225 45 . . 15 . . 255 15 . . . 165 . 285 . Influence Decreases 11056 | 25 436 553 30 285 169 496 295 80 50 103 458 204 1025 698 392 243 185 5 18 550 821 592 776 325 766 420 839 217 Entered New Map 2872 | . 2 125 30 . 149 18 32 . 50 . 22 117 11 320 88 243 . . . . 217 344 354 45 149 200 219 137 Time Decay 6747 | 25 424 418 . 255 10 428 253 60 . 103 416 70 684 368 294 . 185 5 18 380 464 198 362 180 607 190 270 80 Lost Part 500 | . 10 10 . 30 10 50 10 20 . . . . 30 10 10 . . . . 10 60 10 10 . 10 20 190 . Lost Ally 337 | . . . . . . . . . . . 20 17 . . . . . . . 10 80 40 50 100 . 10 10 . Purge Threat 600 | . . . . . . . . . . . . . 300 . . . . . . 150 . . . . . . 150 . Squads Dispatched 90 | . 5 . . 11 . 6 . . . . 4 . 25 . . . . . . 15 1 . . 6 13 2 2 . Investigation 54 | . 3 . . 10 . 4 . . . . 2 . 11 . . . . . . 10 . . . 3 11 . . . Extermination 18 | . . . . 1 . 2 . . . . 1 . 8 . . . . . . 3 . . . 1 . . 2 . Reinforcement 16 | . 2 . . . . . . . . . 1 . 5 . . . . . . 2 1 . . 2 2 1 . . Assault 2 | . . . . . . . . . . . . . 1 . . . . . . . . . . . . 1 . . Garrison . | . . . . . . . . . . . . . . . . . . . . . . . . . . . . . Intercept . | . . . . . . . . . . . . . . . . . . . . . . . . . . . . . Searches Triggered . | . . . . . . . . . . . . . . . . . . . . . . . . . . . . . Construction Impeded 4 | . . . . . . . . . . . 1 . 1 . . . . . . 1 . . . 1 . . . . Haulers Reinforced 3 | . . . . . . . . . . . . . 1 . . . . . . 1 . . . . . 1 . . Active Scanning Responses . | . . . . . . . . . . . . . . . . . . . . . . . . . . . . . Cargo Convoy Interrupts 1 | . . . . . . . . . . . . . 1 . . . . . . . . . . . . . . . Stealth | -11 -10 -10 -8 -6 -6 -6 -6 -6 -6 -5 -5 -5 -5 -5 -5 -5 -4 -4 -4 -4 -4 -4 -4 -4 -3 -3 -2 -2 --------- Run | Yrd Mat Sub Scr Fac Was Fac Low Low Zio Pro Fac Was Fac Upp Upp Zhi Pro Fac Was Fac Ext Cet Arc Hub Res Tes Res Qua Distress Signals 20 | . 4 . . 1 . . . . . . . . 3 . . . . . . 2 . 1 . 1 5 1 1 1 Communications Jammed 23 | . . . . . . . . . . . . . 1 . . . . . . . 21 . . . . 1 . . Distress Signals 23 | . . . . . . . . . . . . . 1 . . . . . . . 21 . . . . 1 . . Times Spotted 477 | . 37 20 . 25 4 19 11 6 . 5 18 6 75 13 9 . 8 . 6 39 25 10 39 8 38 11 39 6 Peak Tracking Total 15 | . 3 4 . 7 4 3 5 3 . 3 3 2 6 9 5 . 1 . 3 6 6 5 2 3 9 3 15 5 Tactical Retreats 57 | . 1 6 . 8 . 5 4 . . . 1 . 8 2 . . 1 . . 9 1 . . . 3 . 8 . Traps | -11 -10 -10 -8 -6 -6 -6 -6 -6 -6 -5 -5 -5 -5 -5 -5 -5 -4 -4 -4 -4 -4 -4 -4 -4 -3 -3 -2 -2 ------- Run | Yrd Mat Sub Scr Fac Was Fac Low Low Zio Pro Fac Was Fac Upp Upp Zhi Pro Fac Was Fac Ext Cet Arc Hub Res Tes Res Qua Traps Triggered 17 | . 1 . . 1 . 2 . . . . 3 . 1 . . . . 1 . 3 2 . . . 1 . 2 . Indirectly . | . . . . . . . . . . . . . . . . . . . . . . . . . . . . . Trap Hack Attempts 3 | . . . . . . . . . . . . . . . . . . . . . 3 . . . . . . . Triggered . | . . . . . . . . . . . . . . . . . . . . . . . . . . . . . Disarmed . | . . . . . . . . . . . . . . . . . . . . . . . . . . . . . Reprogrammed 1 | . . . . . . . . . . . . . . . . . . . . . 1 . . . . . . . Reused 2 | . . . . . . . . . . . 2 . . . . . . . . . . . . . . . . . Traps Extracted . | . . . . . . . . . . . . . . . . . . . . . . . . . . . . . Installed 2 | . . . . . . . . . . . 2 . . . . . . . . . . . . . . . . . Triggered 2 | . . . . . . . . . . . 2 . . . . . . . . . . . . . . . . . Most Traps Carried 2 | . . . . . . . . . . 2 2 . . . . . . . . . . . . . . . . . Machines | -11 -10 -10 -8 -6 -6 -6 -6 -6 -6 -5 -5 -5 -5 -5 -5 -5 -4 -4 -4 -4 -4 -4 -4 -4 -3 -3 -2 -2 ---------- Run | Yrd Mat Sub Scr Fac Was Fac Low Low Zio Pro Fac Was Fac Upp Upp Zhi Pro Fac Was Fac Ext Cet Arc Hub Res Tes Res Qua Machines Disabled 37 | . 3 1 . . . 1 . . . . 1 . 5 . . . . . . 6 4 1 3 3 3 3 3 . Max in Single Turn 2 | . 1 1 . . . 1 . . . . 1 . 1 . . . . . . 2 1 1 1 1 1 1 1 . Garrison Access 5 | . . . . 1 . 1 . . . . 2 . . . . . . . . 1 . . . . . . . . Network Hub 2 | . . . . . . . . . . . . . . . . . . . . . . . . 2 . . . . Energy Cycler 1 | . . . . . . . . . . . . . . . . . . . . . 1 . . . . . . . Machines Repaired . | . . . . . . . . . . . . . . . . . . . . . . . . . . . . . Machines Dismantled . | . . . . . . . . . . . . . . . . . . . . . . . . . . . . . Machines Sabotaged 1 | . . . . . . . . . . . . . . . . . . . . . . . . 1 . . . . Overloaded Fab Kills . | . . . . . . . . . . . . . . . . . . . . . . . . . . . . . Hacking | -11 -10 -10 -8 -6 -6 -6 -6 -6 -6 -5 -5 -5 -5 -5 -5 -5 -4 -4 -4 -4 -4 -4 -4 -4 -3 -3 -2 -2 --------- Run | Yrd Mat Sub Scr Fac Was Fac Low Low Zio Pro Fac Was Fac Upp Upp Zhi Pro Fac Was Fac Ext Cet Arc Hub Res Tes Res Qua Machines Accessed 106 | . 4 1 3 17 . 9 2 . . . 8 . 13 . 1 4 . 1 . 15 7 1 . 2 13 3 2 . Terminals 31 | . 2 . . 7 . 2 . . . . 1 . 1 . . . . . . 2 7 1 . 2 2 3 1 . Fabricators 12 | . . . . 3 . . . . . . 2 . 2 . . . . . . 3 . . . . 1 . 1 . Repair Stations 6 | . . . . . . . . . . . 2 . 2 . . . . . . 1 . . . . 1 . . . Recycling Units 26 | . 2 . . 4 . 4 . . . . . . 6 . . . . . . 7 . . . . 3 . . . Scanalyzers 12 | . . . . 2 . 2 . . . . 1 . 1 . . . . 1 . 1 . . . . 4 . . . Garrison Access 8 | . . . . 1 . 1 . . . . 2 . 1 . . . . . . 1 . . . . 2 . . . Total Hacks 304 | . 10 4 24 48 . 21 2 . . . 19 . 40 . 1 17 . 4 . 25 15 1 . 8 44 4 17 . Successful 173 | . 5 4 24 23 . 5 2 . . . 12 . 22 . 1 17 . 4 . 17 6 . . 4 15 2 10 . Failed 129 | . 5 . . 25 . 15 . . . . 7 . 17 . . . . . . 8 9 1 . 4 29 2 7 . Catastrophic 27 | . . . . 5 . 2 . . . . 1 . 6 . . . . . . . . 1 . 1 9 . 2 . Database Lockouts 2 | . . . . . . 1 . . . . . . 1 . . . . . . . . . . . . . . . Manual 109 | . 10 . . 20 . 14 . . . . 5 . 12 . . . . . . 13 1 1 . 8 12 2 11 . Terminals 89 | . 8 . . 22 . 4 . . . . 2 . 5 . . . . . . 4 15 1 . 8 3 4 13 . Fabricators 42 | . . . . 14 . . . . . . 6 . 6 . . . . . . 7 . . . . 5 . 4 . Repair Stations 25 | . . . . . . . . . . . 6 . 9 . . . . . . 3 . . . . 7 . . . Recycling Units 47 | . 2 . . 5 . 12 . . . . . . 15 . . . . . . 8 . . . . 5 . . . Scanalyzers 38 | . . . . 6 . 4 . . . . 2 . 3 . . . . 4 . 2 . . . . 17 . . . Garrison Access 15 | . . . . 1 . 1 . . . . 3 . 2 . . . . . . 1 . . . . 7 . . . Terminal Hacks 72 | . 1 4 24 6 . . 2 . . . . . 3 . 1 17 . . . . 5 . . . . 2 7 . Record 32 | . . 4 23 . . . . . . . . . . . . 5 . . . . . . . . . . . . Part Schematic 6 | . . . . 1 . . . . . . . . 1 . . 4 . . . . . . . . . . . . Robot Analysis 6 | . 1 . . 1 . . . . . . . . . . . 4 . . . . . . . . . . . . Prototype ID Bank 4 | . . . . . . . . . . . . . . . . 4 . . . . . . . . . . . . Open Door 8 | . . . . . . . 2 . . . . . . . 1 . . . . . 5 . . . . . . . Branch Access Points 1 | . . . . . . . . . . . . . . . . . . . . . . . . . . . 1 . Fabricator Index 1 | . . . . . . . . . . . . . . . . . . . . . . . . . . . 1 . Alert Level 4 | . . . . 1 . . . . . . . . 1 . . . . . . . . . . . . 1 1 . Unreport Threat 2 | . . . . . . . . . . . . . 1 . . . . . . . . . . . . . 1 . Reinforcement Status 1 | . . . . 1 . . . . . . . . . . . . . . . . . . . . . . . . Hauler Manifests 1 | . . . . 1 . . . . . . . . . . . . . . . . . . . . . . . . Registered Components 2 | . . . . 1 . . . . . . . . . . . . . . . . . . . . . . 1 . Registered Prototypes 1 | . . . . . . . . . . . . . . . . . . . . . . . . . . . 1 . Zone Layout 1 | . . . . . . . . . . . . . . . . . . . . . . . . . . . 1 . Proto ID Catalog 1 | . . . 1 . . . . . . . . . . . . . . . . . . . . . . . . . Protovariant Controls 1 | . . . . . . . . . . . . . . . . . . . . . . . . . . 1 . . Fabricator Hacks 18 | . . . . 5 . . . . . . 3 . 3 . . . . . . 4 . . . . 2 . 1 . Network Status 4 | . . . . 2 . . . . . . 1 . . . . . . . . 1 . . . . . . . . Load Schematic 8 | . . . . 1 . . . . . . 1 . 2 . . . . . . 2 . . . . 1 . 1 . Build 6 | . . . . 2 . . . . . . 1 . 1 . . . . . . 1 . . . . 1 . . . Repair Station Hacks 14 | . . . . . . . . . . . 3 . 5 . . . . . . 2 . . . . 4 . . . Scan Component 8 | . . . . . . . . . . . 2 . 3 . . . . . . 1 . . . . 2 . . . Repair 6 | . . . . . . . . . . . 1 . 2 . . . . . . 1 . . . . 2 . . . Recycling Unit Hacks 3 | . . . . . . . . . . . . . 3 . . . . . . . . . . . . . . . Process 1 | . . . . . . . . . . . . . 1 . . . . . . . . . . . . . . . Retrieve Matter 1 | . . . . . . . . . . . . . 1 . . . . . . . . . . . . . . . Retrieve Components 1 | . . . . . . . . . . . . . 1 . . . . . . . . . . . . . . . Scanalyzer 19 | . . . . 4 . 1 . . . . 1 . 3 . . . . 4 . 2 . . . . 4 . . . Insert Component 3 | . . . . 1 . . . . . . . . . . . . . 2 . . . . . . . . . . Analyze 2 | . . . . 1 . . . . . . . . . . . . . 1 . . . . . . . . . . Retrieve Study 14 | . . . . 2 . 1 . . . . 1 . 3 . . . . 1 . 2 . . . . 4 . . . Garrison Access Hacks 5 | . . . . 1 . 1 . . . . 2 . . . . . . . . 1 . . . . . . . . Seal Access 5 | . . . . 1 . 1 . . . . 2 . . . . . . . . 1 . . . . . . . . Unauthorized Hacks 42 | . 4 . . 7 . 3 . . . . 3 . 5 . . . . . . 8 1 . . 4 5 . 2 . Terminals 12 | . 2 . . 2 . . . . . . . . . . . . . . . 1 1 . . 4 . . 2 . Track 2 | . . . . 1 . . . . . . . . . . . . . . . . . . . . . . 1 . Assimilate 4 | . . . . . . . . . . . . . . . . . . . . 1 1 . . 1 . . 1 . Botnet 2 | . 1 . . 1 . . . . . . . . . . . . . . . . . . . . . . . . Skim 1 | . 1 . . . . . . . . . . . . . . . . . . . . . . . . . . . Sabotage 3 | . . . . . . . . . . . . . . . . . . . . . . . . 3 . . . . Fabricators 5 | . . . . 1 . . . . . . 3 . . . . . . . . . . . . . 1 . . . Report 1 | . . . . . . . . . . . 1 . . . . . . . . . . . . . . . . . Prioritize 3 | . . . . 1 . . . . . . 1 . . . . . . . . . . . . . 1 . . . Liberate 1 | . . . . . . . . . . . 1 . . . . . . . . . . . . . . . . . Repair Stations . | . . . . . . . . . . . . . . . . . . . . . . . . . . . . . Recycling Units 23 | . 2 . . 3 . 3 . . . . . . 5 . . . . . . 7 . . . . 3 . . . Tunnel 2 | . 2 . . . . . . . . . . . . . . . . . . . . . . . . . . . Fedlink 21 | . . . . 3 . 3 . . . . . . 5 . . . . . . 7 . . . . 3 . . . Scanalyzers 2 | . . . . 1 . . . . . . . . . . . . . . . . . . . . 1 . . . Extract 2 | . . . . 1 . . . . . . . . . . . . . . . . . . . . 1 . . . Garrison Access . | . . . . . . . . . . . . . . . . . . . . . . . . . . . . . Data Cores Recovered 3 | . . . . . . . . . . . 1 . 2 . . . . . . . . . . . . . . . Used 1 | . . . . . . . . . . . . . 1 . . . . . . . . . . . . . . . Hacking Detections 58 | . 2 . . 9 . 5 . . . . 5 . 9 . . . . 1 . 7 3 1 . 2 10 2 2 . Full Trace Events 22 | . . . . 6 . 1 . . . . 2 . 6 . . . . . . 3 . . . . 4 . . . Feedback Events . | . . . . . . . . . . . . . . . . . . . . . . . . . . . . . Feedback Blocked . | . . . . . . . . . . . . . . . . . . . . . . . . . . . . . Robot Schematics Acquired 3 | . . . . . . . . . 3 . . . . . . . . . . . . . . . . . . . Robots Built . | . . . . . . . . . . . . . . . . . . . . . . . . . . . . . Authchips . | . . . . . . . . . . . . . . . . . . . . . . . . . . . . . Time . | . . . . . . . . . . . . . . . . . . . . . . . . . . . . . Total Robot Build Rating . | . . . . . . . . . . . . . . . . . . . . . . . . . . . . . Part Schematics Acquired 38 | . . . . 12 . . . . 15 . . . 1 . . 4 . 1 . . . . . . 5 . . . Parts Built 9 | . . . . 4 . . . . . . 2 . 1 . . . . . . 1 . . . . 1 . . . Authchips . | . . . . . . . . . . . . . . . . . . . . . . . . . . . . . Time 398 | . . . . 111 . . . . . . 26 . 84 . . . . . . 84 . . . . 93 . . . Total Part Build Rating 57 | . . . . 26 . . . . . . 12 . 6 . . . . . . 6 . . . . 7 . . . Part Studies Acquired 14 | . . . . 2 . 1 . . . . 1 . 3 . . . . 1 . 2 . . . . 4 . . . Parts Repaired 6 | . . . . . . . . . . . 1 . 2 . . . . . . 1 . . . . 2 . . . Time 387 | . . . . . . . . . . . 78 . 118 . . . . . . 103 . . . . 88 . . . Parts Recycled . | . . . . . . . . . . . . . . . . . . . . . . . . . . . . . Recycled Matter . | . . . . . . . . . . . . . . . . . . . . . . . . . . . . . Retrieved Matter . | . . . . . . . . . . . . . . . . . . . . . . . . . . . . . Retrieved Components 3 | . . . . . . . . . . . . . 3 . . . . . . . . . . . . . . . Parts Scanalyzed 2 | . . . . 1 . . . . . . . . . . . . . 1 . . . . . . . . . . Part Schematics Acquired 2 | . . . . 1 . . . . . . . . . . . . . 1 . . . . . . . . . . Parts Damaged . | . . . . . . . . . . . . . . . . . . . . . . . . . . . . . Bothacking | -11 -10 -10 -8 -6 -6 -6 -6 -6 -6 -5 -5 -5 -5 -5 -5 -5 -4 -4 -4 -4 -4 -4 -4 -4 -3 -3 -2 -2 ------------ Run | Yrd Mat Sub Scr Fac Was Fac Low Low Zio Pro Fac Was Fac Upp Upp Zhi Pro Fac Was Fac Ext Cet Arc Hub Res Tes Res Qua Used RIF Installer . | . . . . . . . . . . . . . . . . . . . . . . . . . . . . . Robots Hacked 1 | . . . . 1 . . . . . . . . . . . . . . . . . . . . . . . . Non-combat 1 | . . . . 1 . . . . . . . . . . . . . . . . . . . . . . . . Combat . | . . . . . . . . . . . . . . . . . . . . . . . . . . . . . Robot Hacks Applied 1 | . . . . 1 . . . . . . . . . . . . . . . . . . . . . . . . find_chute 1 | . . . . 1 . . . . . . . . . . . . . . . . . . . . . . . . Relay Couplers Released 3 | . . . . . . . . . . . . . . . . . . . . . . . . . . . 3 . Programmers 3 | . . . . . . . . . . . . . . . . . . . . . . . . . . . 3 . Fabnet Peak Effective % . | . . . . . . . . . . . . . . . . . . . . . . . . . . . . . Robots Rewired 7 | . . . . . . . . . . . . . . . . . . . . . 7 . . . . . . . Allies Hacked . | . . . . . . . . . . . . . . . . . . . . . . . . . . . . . Hacks Repelled . | . . . . . . . . . . . . . . . . . . . . . . . . . . . . . Allies | -11 -10 -10 -8 -6 -6 -6 -6 -6 -6 -5 -5 -5 -5 -5 -5 -5 -4 -4 -4 -4 -4 -4 -4 -4 -3 -3 -2 -2 -------- Run | Yrd Mat Sub Scr Fac Was Fac Low Low Zio Pro Fac Was Fac Upp Upp Zhi Pro Fac Was Fac Ext Cet Arc Hub Res Tes Res Qua Total Allies 50 | . . . . . . . . . 6 . . 19 . . . . . . . 1 16 5 . 1 . 1 1 . Largest Group 19 | . . . . . . . . . 6 6 2 19 . . . . . . . 1 12 16 14 7 . 1 1 . Highest-Rated Group 1043 | . . . . . . . . . 217 217 125 727 . . . . . . . 26 614 1043 937 508 . 26 10 . Highest-Rated Ally 159 | . . . . . . . . . 99 99 99 99 . . . . . . . 26 159 159 143 96 . 26 10 . Initial UFD Resources 116 | . . . . 22 38 38 44 44 44 48 48 48 48 68 68 68 70 70 70 70 94 94 94 94 97 113 116 116 Total Orders 44 | . . . . . . . . . . . 3 . 7 . . . . . . 5 10 3 2 7 2 3 2 . STAY 11 | . . . . . . . . . . . . . . . . . . . . . 4 2 1 4 . . . . FOLLOW 8 | . . . . . . . . . . . . . . . . . . . . . 4 1 1 2 . . . . RETURN 25 | . . . . . . . . . . . 3 . 7 . . . . . . 5 2 . . 1 2 3 2 . Ally Attacks 312 | . . . . . . . . . . 18 26 82 . . . . . . . . 50 57 39 40 . . . . Total Damage 11324 | . . . . . . . . . . 666 1600 3444 . . . . . . . . 1419 1680 1023 1492 . . . . Kills 55 | . . . . . . . . . . 4 15 7 . . . . . . . . 10 5 6 8 . . . . Allies Corrupted 3 | . . . . . . . . . . . . . . . . . . . . 1 1 . . 1 . . . . Allies Melted 1 | . . . . . . . . . . . . . 1 . . . . . . . . . . . . . . . Intel | -11 -10 -10 -8 -6 -6 -6 -6 -6 -6 -5 -5 -5 -5 -5 -5 -5 -4 -4 -4 -4 -4 -4 -4 -4 -3 -3 -2 -2 ------- Run | Yrd Mat Sub Scr Fac Was Fac Low Low Zio Pro Fac Was Fac Upp Upp Zhi Pro Fac Was Fac Ext Cet Arc Hub Res Tes Res Qua Active Infowar (turns) 19522 | 65 742 . 104 607 32 1055 622 224 1866 511 1017 150 2848 854 640 100 730 23 219 1317 1163 404 753 365 1965 397 585 164 Optics 16490 | . . . . 336 32 1055 622 224 1866 511 1017 150 2848 854 640 100 730 23 219 1317 1163 31 . . 1606 397 585 164 Sensors 13717 | . . . 104 101 . 869 483 . . . 729 145 2534 672 640 98 730 23 219 1317 1163 404 753 365 1965 210 193 . Terrain 1026 | 50 . . . . . . . . . . 826 150 . . . . . . . . . . . . . . . . Structural 2109 | . . . . 602 32 1054 214 207 . . . . . . . . . . . . . . . . . . . . Seismic 757 | 15 742 . . . . . . . . . . . . . . . . . . . . . . . . . . . Decoding 663 | . . . . . . . . . . 375 288 . . . . . . . . . . . . . . . . . Cloaking 386 | . . . . . . . . . . . . . . . . . . . . . . . . . . 38 348 . Jamming 1883 | . . . . . . . . . . . . . 64 . . . . . . . 1073 . . . . 316 430 . Robot Analysis Total 6 | . 1 . . 1 . . . . . . . . . . . 4 . . . . . . . . . . . . Derelict Logs Recovered 17 | . . 2 5 . . . 1 2 . 3 . . . 1 2 . 1 . . . . . . . . . . . Drone Launches 25 | . . . . . . . . . . . 3 . 7 . . . . . . 5 2 . . 1 2 3 2 . Drone Recoveries 25 | . . . . . . . . . . . 3 . 7 . . . . . . 5 2 . . 1 2 3 2 . Decoded 0b10 Intel 3 | . . . . . . . . . . . 3 . . . . . . . . . . . . . . . . . Garrisons 1 | . . . . . . . . . . . 1 . . . . . . . . . . . . . . . . . Patrols 2 | . . . . . . . . . . . 2 . . . . . . . . . . . . . . . . . Exploration | -11 -10 -10 -8 -6 -6 -6 -6 -6 -6 -5 -5 -5 -5 -5 -5 -5 -4 -4 -4 -4 -4 -4 -4 -4 -3 -3 -2 -2 ------------- Run | Yrd Mat Sub Scr Fac Was Fac Low Low Zio Pro Fac Was Fac Upp Upp Zhi Pro Fac Was Fac Ext Cet Arc Hub Res Tes Res Qua Turns Passed 27578 | 93 1435 3627 3730 621 32 1055 622 224 1866 511 1017 150 2848 854 640 100 730 23 219 1317 1163 404 821 365 1965 397 585 164 Spaces Moved 25458 | 27 541 1640 1985 1330 82 1462 896 354 1108 597 1226 183 2830 1021 1022 149 1089 38 263 1814 839 426 238 455 2490 390 673 290 Core 270 | . . . . . . . . . 9 . . . . . . . . . . . . . . . . . 83 178 Treads 3371 | 7 278 1624 1462 . . . . . . . . . . . . . . . . . . . . . . . . . Legs 20 | 20 . . . . . . . . . . . . . . . . . . . . . . . . . . . . Wheels 279 | . 263 16 . . . . . . . . . . . . . . . . . . . . . . . . . . Hover 18974 | . . . . . . 966 896 354 1099 597 1226 183 2830 1021 1022 148 1089 38 263 1814 839 426 238 455 2490 390 590 . Flight 2544 | . . . 523 1330 82 496 . . . . . . . . . 1 . . . . . . . . . . . 112 Fastest Speed 27 | 120 150 90 40 27 29 29 50 50 55 55 46 52 52 54 54 59 49 49 49 38 42 38 42 42 41 46 46 39 Average Speed 72 | 130 173 172 186 28 33 45 53 53 72 55 51 52 56 54 56 62 53 49 49 46 66 43 60 42 45 47 49 45 Slowest Speed 760 | 160 320 240 760 111 110 180 55 55 600 55 111 180 126 136 59 525 59 49 49 50 154 140 129 42 46 52 131 50 Overloaded Moves 5 | . . . . . 5 . . . . . . . . . . . . . . . . . . . . . . . Propulsion Burnouts . | . . . . . . . . . . . . . . . . . . . . . . . . . . . . . Robots Hopped 17 | . . . . 7 2 . . . 1 . . . . . . . . . . . . . . . 1 . . 6 Potential Cave-ins 8 | . . 2 . . . . . . . . . . . 2 . . . . . . . . . . . . 4 . Cave-ins Triggered . | . . . . . . . . . . . . . . . . . . . . . . . . . . . . . Exploration Rate (%) 63 | 4 82 80 89 45 74 40 94 68 86 87 33 87 64 89 96 63 94 2 100 37 87 75 75 35 59 37 25 27 Regions Visited 28 Branch Regions 16 Pre-discovered Areas 15 | . 2 1 5 1 . . . . 2 1 . . . . . 3 . . . . . . . . . . . . Known Exits Taken 19 | . . . 1 . . 1 1 1 1 1 . . 1 1 1 1 1 . . 1 1 1 1 1 1 1 1 . Unknown Exits Taken 3 | 1 1 1 . . . . . . . . . . . . . . . . . . . . . . . . . . Scrap Searched 36 | . . 7 6 . . . 8 1 1 4 . . . 3 3 . 3 . . . . . . . . . . . Spaces Dug 192 | . . 1 . 32 . 24 3 1 . . 4 1 56 6 . . 4 . . 28 2 . . 2 14 4 10 . Terrain Destroyed 679 | . . 6 . 32 . 46 7 1 . . 4 1 86 25 37 . 68 . 11 73 80 3 3 5 48 85 58 . Melee 153 | . . . . 32 . 22 3 1 . . 4 1 41 . . . . . . 24 . . . 2 13 4 6 . Projectile 229 | . . 6 . . . 7 4 . . . . . . 25 7 . 33 . 11 27 32 3 3 3 35 2 31 . AOE 297 | . . . . . . 17 . . . . . . 45 . 30 . 35 . . 22 48 . . . . 79 21 . Terrain Rammed . | . . . . . . . . . . . . . . . . . . . . . . . . . . . . . Walls Destroyed . | . . . . . . . . . . . . . . . . . . . . . . . . . . . . . Machines Disabled . | . . . . . . . . . . . . . . . . . . . . . . . . . . . . . Actions | -11 -10 -10 -8 -6 -6 -6 -6 -6 -6 -5 -5 -5 -5 -5 -5 -5 -4 -4 -4 -4 -4 -4 -4 -4 -3 -3 -2 -2 --------- Run | Yrd Mat Sub Scr Fac Was Fac Low Low Zio Pro Fac Was Fac Upp Upp Zhi Pro Fac Was Fac Ext Cet Arc Hub Res Tes Res Qua Total 32848 | 69 883 2294 2020 1485 82 1691 999 368 2167 758 1537 212 3717 1271 1074 154 1211 42 327 2186 1352 623 823 611 3205 555 819 313 Wait 5269 | 28 199 484 . 66 . 61 49 4 1053 132 208 5 569 192 28 . 82 1 13 238 346 156 472 138 561 111 50 23 Move 25405 | 26 540 1639 1984 1318 78 1461 895 353 1105 596 1226 182 2829 1020 1021 148 1088 38 262 1813 838 425 237 454 2487 389 672 281 Hop 11 | . . . . 5 1 . . . 1 . . . . . . . . . . . . . . . 1 . . 3 Pick Up 166 | 1 26 27 19 9 . 10 3 . 1 6 9 1 10 3 2 1 2 1 2 8 . 5 4 1 10 2 3 . Fast Attach 111 | 1 . 9 5 4 1 8 5 . 2 1 11 . 11 2 1 3 2 1 1 3 5 6 8 . 12 1 3 5 Attach 61 | 2 1 4 2 12 . 8 . . 1 . 2 . 3 2 1 . 1 1 . 2 . 2 3 . 4 4 6 . Detach 19 | . . 1 1 2 . 3 . . . . 1 . 3 . . . . . . . . 1 . . 4 1 2 . Swap 164 | 1 8 9 . 8 2 11 7 . . 1 13 . 43 1 2 1 5 . . 18 11 . 1 4 4 9 5 . Drop 179 | 2 12 18 9 13 . 10 4 . 2 2 13 1 15 4 5 1 6 . 4 10 3 7 8 2 19 2 6 1 Fire 1062 | 8 94 90 . . . 65 29 4 . 19 33 22 148 47 14 . 25 . 45 60 75 21 90 8 87 29 49 . Melee 276 | . . . . 46 . 43 4 7 2 1 18 1 82 . . . . . . 32 4 . . 4 16 7 9 . Ram 7 | . 1 . . . . . . . . . . . . . . . . . . . . . . . . . 6 . Kick . | . . . . . . . . . . . . . . . . . . . . . . . . . . . . . Crush 2 | . 2 . . . . . . . . . . . . . . . . . . . . . . . . . . . Escape Stasis 23 | . . . . . . 10 . . . . . . . . . . . . . . 5 . . . . . 8 . Rewire 65 | . . . . . . . 3 . . . . . . . . . . . . . 62 . . . . . . . Trap 5 | . . . . . . . . . . . 2 . . . . . . . . . 3 . . . . . . . Miscellaneous 23 | . . 13 . 2 . 1 . . . . 1 . 4 . . . . . . 2 . . . . . . . . Route ------- -11/Scrapyard -10/Materials (discovered 3 exits: [*Mat x2] / *Sub) -10/Subcaves (discovered 4 exits: [*Mat x2] / [*Rec] / *Scr) -8/Scraptown (discovered 2 exits: *Fac x2) -6/Factory (discovered 4 exits: Fac x2 / *Low x2) -6/Waste -6/Factory (discovered 3 exits: *Fac / *Low x2) -6/Lower Caves -6/Lower Caves (discovered 2 exits: *Fac / *Zio) -6/Zion -5/Proximity Caves -5/Factory (discovered 4 exits: *Fac x2 / *Upp x2) -5/Waste -5/Factory (discovered 4 exits: *Fac x2 / *Upp x2) -5/Upper Caves -5/Upper Caves (discovered 2 exits: *Fac / *Zhi) -5/Zhirov -4/Proximity Caves -4/Factory -4/Waste -4/Factory (discovered 8 exits: *Res x4 / *Upp x2 / *Ext x2) -4/Extension (discovered 3 exits: *Res x2 / *Cet) -4/Cetus (discovered 2 exits: *Res / *Arc) -4/Archives (discovered 3 exits: *Res / *Hub x2) -4/Hub_04(d) -3/Research (discovered 5 exits: *Res x3 / Arm / *Tes) -3/Testing -2/Research (discovered 5 exits: Acc x3 / *Qua x2) -2/Quarantine History --------- Turn | Location | Event 14 | -11/Scrapyard | Discovered new exit (range 3) 94 | -11/Scrapyard | Entered Materials 307 | -10/Materials | Build established: Mutant 437 | -10/Materials | Discovered new exit (range 11) 1014 | -10/Materials | Discovered new exit (range 16) 1194 | -10/Materials | Derelicts attacked the area 1520 | -10/Materials | Discovered new exit (range 6) 1529 | -10/Materials | Entered Subcaves 1530 | -10/Subcaves | Approached by a straggling Scientist 1887 | -10/Subcaves | Core integrity fell below 50% 2043 | -10/Subcaves | A swath of the cavern ceiling suddenly collapsed 2295 | -10/Subcaves | Shifting Twisted Machinery released Mak. Thermal Plating 2399 | -10/Subcaves | Shifting Twisted Machinery released Sub. Machine Gun 2599 | -10/Subcaves | Learned Materials security intel 2702 | -10/Subcaves | Build established: Subdweller-Mutant 2785 | -10/Subcaves | Ambushed by angry Subdweller bent on revenge 2876 | -10/Subcaves | Shifting Twisted Machinery released Mak. Spear 2942 | -10/Subcaves | Discovered new exit (range 4) 3000 | -10/Subcaves | Learned Materials interactive machine intel 3602 | -10/Subcaves | Discovered new exit (range 15) 3604 | -10/Subcaves | Shifting Twisted Machinery released Riot Gun 3852 | -10/Subcaves | Discovered new exit (range 10) 3901 | -10/Subcaves | Core integrity fell below 20% 3990 | -10/Subcaves | Shifting Twisted Machinery released Scrap Shield 4011 | -10/Subcaves | Shifting Twisted Machinery released Sub. Beam Cannon 4177 | -10/Subcaves | A swath of the cavern ceiling suddenly collapsed 4286 | -10/Subcaves | Visited Clippyterm 4291 | -10/Subcaves | Learned location of Deep Caves (-6) 4400 | -10/Subcaves | Visited 4L-MR0's lab 4914 | -10/Subcaves | Build established: Mutant 5156 | -10/Subcaves | Entered Scraptown 5156 | -8/Scraptown | System corruption cleaned by C-Scrubber 5704 | -8/Scraptown | Discovered new exit (range 13) 5740 | -8/Scraptown | Scanned Subdweller tech in exchange for log data 5744 | -8/Scraptown | Learned location of Zion (-6) 5747 | -8/Scraptown | Learned location of 2 exits from Proximity Caves 5749 | -8/Scraptown | Learned 8 Research zone layouts 5752 | -8/Scraptown | Learned Factory trap positions 5754 | -8/Scraptown | Learned location of 1 exit from Factory 5929 | -8/Scraptown | Visited CPS Storage 5963 | -8/Scraptown | Visited Observation Area 6342 | -8/Scraptown | Heard Great Nut preacher, LISTEN AND RECITE! 6378 | -8/Scraptown | Visited Symbiants 6431 | -8/Scraptown | Visited Junk Repository 6560 | -8/Scraptown | Visited Assassins FH 6589 | -8/Scraptown | Visited SPCMW 6642 | -8/Scraptown | Visited Red Mages 6724 | -8/Scraptown | Visited UFD Registry 6724 | -8/Scraptown | Registered with UFD as "Steelsink" 6916 | -8/Scraptown | Guru changed UFD alias to "Shadowguard" 7122 | -8/Scraptown | Visited Scrap Suit Storage 7242 | -8/Scraptown | Visited Science Guys 7328 | -8/Scraptown | Visited Curators Association 7444 | -8/Scraptown | Delivered Scrap Shield to a Scientist 7556 | -8/Scraptown | Visited A0-MCA Data Center 7571 | -8/Scraptown | Given a B rating by A0-MCA 7616 | -8/Scraptown | Visited Derelict Rescue Squad 7648 | -8/Scraptown | Visited Sword Containment 7679 | -8/Scraptown | Visited Modified Component R&D 7758 | -8/Scraptown | Visited Junk Repository 7825 | -8/Scraptown | Visited Chapter 10 7864 | -8/Scraptown | Visited Cartography Club 7936 | -8/Scraptown | Learned location of Lower Caves (-6) 7936 | -8/Scraptown | Learned location of Archives (-4) 7936 | -8/Scraptown | Learned location of Hub_04(d) (-4) 7936 | -8/Scraptown | Learned 12 Materials zone layouts 7936 | -8/Scraptown | Learned 8 Factory zone layouts 7936 | -8/Scraptown | Learned 12 Factory zone layouts 7936 | -8/Scraptown | Learned 12 Research zone layouts 7936 | -8/Scraptown | Learned 4 Mines zone layouts 7936 | -8/Scraptown | Learned 4 Storage zone layouts 7936 | -8/Scraptown | Learned 12 Lower Caves zone layouts 7936 | -8/Scraptown | Learned 8 Access zone layouts 7936 | -8/Scraptown | Learned 8 Upper Caves zone layouts 7936 | -8/Scraptown | Learned 8 Proximity Caves zone layouts 7936 | -8/Scraptown | Learned Factory emergency access door positions 7936 | -8/Scraptown | Learned location of 1 exit from Factory 7936 | -8/Scraptown | Learned location of 2 exits from Upper Caves 7936 | -8/Scraptown | Learned location of 3 exits from Upper Caves 7940 | -8/Scraptown | Found Deep Structural Scanner 8450 | -8/Scraptown | Found A0-MCA's Component Scanner 8735 | -8/Scraptown | Met Optimus 8735 | -8/Scraptown | Accepted into 0bPrime 8882 | -8/Scraptown | Discovered new exit (range 3) 8884 | -8/Scraptown | Identified exit to Factory 8886 | -8/Scraptown | Entered Factory 8886 | -6/Factory | Evolved 8 slots: Propulsion x3, Utility x5 8887 | -6/Factory | Identified exit to Lower Caves 8888 | -6/Factory | Identified exit to Factory 8890 | -6/Factory | Loaded intel: 86 trap records 9012 | -6/Factory | Found Rocket Array 9102 | -6/Factory | Discovered exit to Lower Caves (range 15) 9105 | -6/Factory | Loaded intel: 8 recycling unit locations 9134 | -6/Factory | Learned location of Protoforge (-2) 9160 | -6/Factory | Fabricated Adv. Reaction Control System? 9243 | -6/Factory | Fabricated Hyp. Gauss Cannon? 9462 | -6/Factory | Build established: Scavenger-Sprinter 9507 | -6/Factory | Sucked down chute 9507 | -6/Factory | Entered Waste 9513 | -6/Waste | Spotted C-40 Crusher 9520 | -6/Waste | Spotted C-40 Crusher 9522 | -6/Waste | EMP discharged 9522 | -6/Waste | System corruption reached 10% 9527 | -6/Waste | Spotted C-40 Crusher 9527 | -6/Waste | Spotted C-40 Crusher 9528 | -6/Waste | Discovered new exit (range 21) 9530 | -6/Waste | Spotted C-40 Crusher 9531 | -6/Waste | Spotted C-40 Crusher 9534 | -6/Waste | Crushed by Compactor (1 part destroyed, 1 dropped) 9538 | -6/Waste | Identified exit to Factory 9539 | -6/Waste | Entered Factory 9667 | -6/Factory | Loaded intel: 8 recycling unit locations 9670 | -6/Factory | Discovered exit to Lower Caves (range 7) 9727 | -6/Factory | Discovered exit to Lower Caves (range 8) 9780 | -6/Factory | Central database locked down 9866 | -6/Factory | Discovered exit to Factory (range 7) 10088 | -6/Factory | Build established: Scout 10297 | -6/Factory | Lost 3 parts (3n) 10594 | -6/Factory | Entered Lower Caves 10596 | -6/Lower Caves | UFD Scientist delivered a prototype 10596 | -6/Lower Caves | Attracted the attention of an 0b10 checkpoint 10748 | -6/Lower Caves | Discovered new exit (range 19) 10782 | -6/Lower Caves | Identified exit to Lower Caves 10797 | -6/Lower Caves | Found Heart of Steel 10867 | -6/Lower Caves | Learned Factory emergency access door positions 11216 | -6/Lower Caves | Entered another Lower Caves area 11222 | -6/Lower Caves | Learned 8 Factory zone layouts 11238 | -6/Lower Caves | Spotted B-75 Beast 11247 | -6/Lower Caves | Discovered exit to Factory (range 21) 11262 | -6/Lower Caves | Attracted the attention of an 0b10 checkpoint 11327 | -6/Lower Caves | Learned location of 1 exit from Factory 11385 | -6/Lower Caves | Build established: Mutant 11433 | -6/Lower Caves | Discovered new exit (range 10) 11437 | -6/Lower Caves | Identified exit to Zion 11440 | -6/Lower Caves | Entered Zion 11460 | -6/Zion | System corruption cleaned by Quarantine Array 11489 | -6/Zion | Given the Hacking Drone Bay 11489 | -6/Zion | Found Prototype Device 11490 | -6/Zion | Identified Hacking Drone Bay 11567 | -6/Zion | Received a visual enhancement algorithm 11581 | -6/Zion | Found Mobile Refinery Mk. CCLXVII 12667 | -6/Zion | Heart of Steel transformed into Warbot 12895 | -6/Zion | Learned location of Quarantine (-2) 13130 | -6/Zion | Gained Derelict followers 13191 | -6/Zion | Discovered new exit (range 14) 13197 | -6/Zion | Given A8's code to call for help 13212 | -6/Zion | Identified exit to Proximity Caves 13306 | -6/Zion | Entered Proximity Caves 13306 | -5/Proximity Caves | Accompanied by 6 allies (Warbot) 13315 | -5/Proximity Caves | Spotted B-75 Beast 13336 | -5/Proximity Caves | Allies destroyed B-75 Beast 13365 | -5/Proximity Caves | Lost 3 allies 13474 | -5/Proximity Caves | Attracted the attention of an 0b10 checkpoint 13794 | -5/Proximity Caves | Learned Factory terminal intel 13805 | -5/Proximity Caves | Learned Factory security intel 13817 | -5/Proximity Caves | Entered Factory 13817 | -5/Factory | Accompanied by 2 allies (Warbot) 13817 | -5/Factory | Evolved 2 slots: Propulsion x1, Utility x1 13818 | -5/Factory | Identified exit to Upper Caves 13819 | -5/Factory | Identified exit to Factory 13823 | -5/Factory | Loaded intel: 26 terminal locations 14148 | -5/Factory | Fabricated Adv. System Restoration Module (x2) 14378 | -5/Factory | Build established: Scout 14735 | -5/Factory | Repaired Broken Hyp. Gauss Cannon? 14793 | -5/Factory | Discovered exit to Factory (range 18) 14834 | -5/Factory | Sucked down chute 14834 | -5/Factory | Entered Waste 14834 | -5/Waste | Met up with 1 ally sucked down the chute earlier 14839 | -5/Waste | Spotted C-40 Crusher 14849 | -5/Waste | EMP discharged 14854 | -5/Waste | Destroyed C-40 Crusher 14859 | -5/Waste | Spotted C-40 Crusher 14880 | -5/Waste | Allies destroyed C-40 Crusher 14885 | -5/Waste | Spotted C-40 Crusher 14910 | -5/Waste | Spotted C-40 Crusher 14928 | -5/Waste | Met Warlord forces unprepared to attack 14931 | -5/Waste | Allies destroyed C-40 Crusher 14949 | -5/Waste | EMP discharged 14949 | -5/Waste | System corruption reached 10% 14949 | -5/Waste | Spotted C-40 Crusher 14953 | -5/Waste | Allies destroyed C-40 Crusher 14954 | -5/Waste | Allies destroyed C-40 Crusher 14957 | -5/Waste | Spotted C-40 Crusher 14980 | -5/Waste | Discovered new exit (range 10) 14984 | -5/Waste | Identified exit to Factory 14984 | -5/Waste | Entered Factory 15008 | -5/Factory | Lost 3 allies 15096 | -5/Factory | Destroyed 9 combat bots 15646 | -5/Factory | Discovered exit to Factory (range 22) 15753 | -5/Factory | Loaded intel: 8 recycling unit locations 15795 | -5/Factory | Build established: Scientist-Scout 16188 | -5/Factory | Central database locked down 16960 | -5/Factory | Repaired Cmb. Linear Gravjet 17008 | -5/Factory | Repaired Power Maul+ 17219 | -5/Factory | Discovered exit to Factory (range 8) 17344 | -5/Factory | Cargo convoy interrupted 17388 | -5/Factory | Fabricated Tri-rail Accelerator? 17436 | -5/Factory | Build established: Scout 17684 | -5/Factory | First assault squad dispatched 17832 | -5/Factory | Entered Upper Caves 17833 | -5/Upper Caves | Identified exit to Upper Caves 18073 | -5/Upper Caves | Attracted the attention of an 0b10 outpost 18627 | -5/Upper Caves | Attracted the attention of an 0b10 checkpoint 18686 | -5/Upper Caves | Entered another Upper Caves area 18687 | -5/Upper Caves | Encountered a Warlord checkpoint 18687 | -5/Upper Caves | Identified exit to Zhirov 18688 | -5/Upper Caves | Attracted the attention of an 0b10 checkpoint 18743 | -5/Upper Caves | Learned Factory stockpile data 18981 | -5/Upper Caves | Learned Factory emergency access door positions 19326 | -5/Upper Caves | Entered Zhirov 19326 | -5/Zhirov | Discovered new exit (range 3) 19337 | -5/Zhirov | Met Zhirov 19350 | -5/Zhirov | Learned location of Testing (-3) 19350 | -5/Zhirov | Learned location of Command (-1) 19366 | -5/Zhirov | Zhirov requested help retrieving the SGEMP Prototype 19375 | -5/Zhirov | Found Alien Artifact 19375 | -5/Zhirov | Identified Integrated Reactor 19375 | -5/Zhirov | Installed Integrated Reactor, increased core energy generation (+10) 19425 | -5/Zhirov | Identified exit to Proximity Caves 19426 | -5/Zhirov | Entered Proximity Caves 19920 | -4/Proximity Caves | Learned 4 Research zone layouts 19997 | -4/Proximity Caves | Attracted the attention of an 0b10 checkpoint 20156 | -4/Proximity Caves | Entered Factory 20156 | -4/Factory | Evolved 2 slots: Power x1, Weapon x1 20157 | -4/Factory | Identified exit to Upper Caves 20179 | -4/Factory | Sucked down chute 20179 | -4/Factory | Entered Waste 20186 | -4/Waste | Spotted C-40 Crusher 20202 | -4/Waste | Destroyed C-40 Crusher 20216 | -4/Waste | Spotted C-40 Crusher 20222 | -4/Waste | Destroyed C-40 Crusher 20236 | -4/Waste | Spotted C-40 Crusher 20249 | -4/Waste | Destroyed C-40 Crusher 20264 | -4/Waste | Spotted C-40 Crusher 20265 | -4/Waste | Spotted C-40 Crusher 20274 | -4/Waste | Spotted C-40 Crusher 20290 | -4/Waste | Destroyed C-40 Crusher 20310 | -4/Waste | Destroyed C-40 Crusher 20318 | -4/Waste | Destroyed C-40 Crusher 20366 | -4/Waste | Discovered new exit (range 14) 20381 | -4/Waste | Identified exit to Factory 20398 | -4/Waste | Entered Factory 20447 | -4/Factory | Build established: Scientist-Scout 20460 | -4/Factory | Spotted B-86 Titan 20553 | -4/Factory | Repaired Broken Cmb. Linear Gravjet 20601 | -4/Factory | Loaded intel: 8 recycling unit locations 20607 | -4/Factory | Spotted B-86 Titan 20814 | -4/Factory | Identified exit to Research 21012 | -4/Factory | Fabricated Tri-rail Accelerator? 21326 | -4/Factory | Build established: Scout 21350 | -4/Factory | Identified exit to Extension 21715 | -4/Factory | Entered Extension 21811 | -4/Extension | Rescued a captive Derelict 22109 | -4/Extension | Rescued A7 22113 | -4/Extension | Rescued a captive Derelict 22149 | -4/Extension | Rescued a captive Derelict 22150 | -4/Extension | Rescued a captive Derelict 22318 | -4/Extension | Build established: Scientist-Ninja 22320 | -4/Extension | Spotted B-86 Titan 22376 | -4/Extension | Destroyed B-86 Titan 22407 | -4/Extension | Spotted B-86 Titan 22411 | -4/Extension | Lost 4 allies 22434 | -4/Extension | Allies destroyed B-86 Titan 22656 | -4/Extension | Build established: Commander-Assassin 22666 | -4/Extension | Rescued a captive Derelict 22669 | -4/Extension | Rescued a captive Derelict 22719 | -4/Extension | Energy Cycler disabled 22726 | -4/Extension | Rescued a captive Derelict 22729 | -4/Extension | Rescued a captive Derelict 22735 | -4/Extension | Rescued a captive Derelict 22804 | -4/Extension | P-70 Sage assimilated allied OB-NWQ(h) 22845 | -4/Extension | Discovered new exit (range 6) 22846 | -4/Extension | Lost 3 parts (1p1n1u) 22857 | -4/Extension | Identified exit to Cetus 22878 | -4/Extension | Entered Cetus 22878 | -4/Cetus | Accompanied by 11 allies (A7) 22883 | -4/Cetus | Acquired a Cetus Manufacturing Module code from A7 22887 | -4/Cetus | Spotted Cetus Guard 22887 | -4/Cetus | Spotted Cetus Guard 22887 | -4/Cetus | Spotted Cetus Guard 22887 | -4/Cetus | Spotted Cetus Guard 22904 | -4/Cetus | Allies destroyed Cetus Guard 22905 | -4/Cetus | Destroyed Cetus Guard 22913 | -4/Cetus | Destroyed Cetus Guard 22915 | -4/Cetus | Destroyed Cetus Guard 22946 | -4/Cetus | Started Cetus Manufacturing Module 22971 | -4/Cetus | Manufactured an Enhanced Grunt 22992 | -4/Cetus | Escorted A7 to Cetus Mainframe 22996 | -4/Cetus | Manufactured an Enhanced Grunt 23021 | -4/Cetus | Manufactured an Enhanced Grunt 23034 | -4/Cetus | Discovered new exit (range 15) 23046 | -4/Cetus | Manufactured an Enhanced Grunt 23071 | -4/Cetus | Manufactured an Enhanced Grunt 23083 | -4/Cetus | Spotted Cetus Guard 23083 | -4/Cetus | Spotted Cetus Guard 23093 | -4/Cetus | Spotted Cetus Guard 23094 | -4/Cetus | Spotted Cetus Guard 23102 | -4/Cetus | Allies destroyed Cetus Guard 23107 | -4/Cetus | Allies destroyed Cetus Guard 23107 | -4/Cetus | Destroyed Cetus Guard 23111 | -4/Cetus | Allies destroyed Cetus Guard 23116 | -4/Cetus | Discovered exit to Research (range 15) 23119 | -4/Cetus | Met Revision 17 23146 | -4/Cetus | Identified exit to Archives 23221 | -4/Cetus | Build established: Commander-Mutant 23282 | -4/Cetus | Entered Archives 23282 | -4/Archives | Accompanied by 14 allies (A7) 23287 | -4/Archives | Received a hacking code to weaken MAIN.C 23345 | -4/Archives | Lost 5 allies 23453 | -4/Archives | Discovered new exit (range 15) 23464 | -4/Archives | Discovered new exit (range 14) 23503 | -4/Archives | Discovered exit to Research (range 15) 23865 | -4/Archives | Build established: Scavenger-Mutant 24082 | -4/Archives | Identified exit to Hub_04(d) 24103 | -4/Archives | Entered Hub_04(d) 24103 | -4/Hub_04(d) | Accompanied by 7 allies 24152 | -4/Hub_04(d) | Discovered exit to Research (range 4) 24334 | -4/Hub_04(d) | Watched by a mysterious "MATRIX" hacker. 24363 | -4/Hub_04(d) | Lost 3 allies 24402 | -4/Hub_04(d) | Network Hub disabled 24408 | -4/Hub_04(d) | Network Hub disabled 24468 | -4/Hub_04(d) | Entered Research 24468 | -3/Research | Evolved 2 slots: Propulsion x1, Utility x1 24469 | -3/Research | Identified exit to Armory 24469 | -3/Research | Identified exit to Research 24563 | -3/Research | Repaired Tri-rail Accelerator 24611 | -3/Research | Repaired Tri-rail Accelerator 24628 | -3/Research | Discovered new exit (range 6) 24631 | -3/Research | Identified exit to Testing 24668 | -3/Research | Revision forces began assault on 0b10 24681 | -3/Research | Met up with Revision 17++ 24823 | -3/Research | Fabricated Exp. Optical Array (x1) 25090 | -3/Research | Loaded intel: 5 recycling unit locations 25111 | -3/Research | Found Smartbomb Launcher 25168 | -3/Research | Research terminal network offline 25313 | -3/Research | Found Launcher Loader 25402 | -3/Research | Build established: Scout 25480 | -3/Research | Spotted Striker 25480 | -3/Research | Spotted Striker 25482 | -3/Research | Destroyed Striker 25486 | -3/Research | Destroyed Striker 25675 | -3/Research | Found Exp. Core Analyzer 25717 | -3/Research | Build established: Scientist-Scout 25862 | -3/Research | Spotted Executioner 25862 | -3/Research | Spotted Striker 25865 | -3/Research | Destroyed Executioner 25922 | -3/Research | Spotted Striker 25942 | -3/Research | Destroyed Striker 25991 | -3/Research | Lost 11 allies 26023 | -3/Research | Spotted Striker 26054 | -3/Research | Spotted Striker 26102 | -3/Research | Spotted Executioner 26433 | -3/Research | Entered Testing 26439 | -3/Testing | Spotted PL-U1FPZP8ASS 26649 | -3/Testing | Spotted PH-3UQ5PPMQ81 26778 | -3/Testing | Protovariant out of control (PL-U1FPZP8ASS) 26778 | -3/Testing | Unleashed a protovariant (PL-U1FPZP8ASS) 26830 | -3/Testing | Entered Research 26830 | -2/Research | Evolved 2 slots: Utility x2 26831 | -2/Research | Identified exit to Quarantine 26950 | -2/Research | Spotted B-90 Cyclops 26956 | -2/Research | Build established: Scientist-Mutant 27079 | -2/Research | Identified exit to Access 27284 | -2/Research | System corruption reached 10% 27323 | -2/Research | Lost 9 parts (1p4n3u1w) 27374 | -2/Research | Core integrity fell below 50% 27405 | -2/Research | Lost 6 parts (2n3u1w) 27408 | -2/Research | Spotted B-90 Cyclops 27414 | -2/Research | Core integrity fell below 20% 27415 | -2/Research | Entered Quarantine 27579 | -2/Quarantine | Destroyed by X-87 Electro with Compact HERF Cannon Last Messages --------------- data lost. 27488_ MRV4QXNTL1SUGV|G RTJ2MLB3Y 27495_ Acquired Railgun. 27496_ Dropped Railgun. 27504_ System corrupted: Component data lost. 27511_ Acquired Impulse Thruster. 27526_ Acquired Impulse Thruster Array. 27540_ W-44 Eye sends out distress signal. 27543_ =%CCXB>XDP92%XFWTTUS JJ5#EHXX